fUST/lending_fUST_20251130
["ID","MTS","AMOUNT","RATE_DAILY","PERIOD"]
[395168653,1764504565245,-402.65174632,7.637e-05,2]
[395168654,1764504566591,-225.07239136,7.637e-05,2]
[395168655,1764504568605,-297.07510963,7.637e-05,2]
[395168656,1764504573419,-321.90067097,7.637e-05,2]
[395168657,1764504574875,-318.72461227,7.637e-05,2]
[395168658,1764504578568,-379.69304451,7.637e-05,2]
[395168659,1764504582553,-190.28111491,7.637e-05,2]
[395168660,1764504584067,-300.0,7.637e-05,2]
[395168661,1764504588036,-397.34825368,7.637e-05,2]
[395168662,1764504592144,-225.67166388,7.637e-05,2]
[395168663,1764504597015,-300.0,7.637e-05,2]
[395168664,1764504598419,-241.75515424,7.637e-05,2]
[395168665,1764504599922,-384.96124371,7.637e-05,2]
[395168666,1764504602416,-235.57215521,7.637e-05,2]
[395168670,1764504622421,-158.90524772,7.637e-05,2]
[395168671,1764504624632,-340.72298743,7.637e-05,2]
[395168672,1764504626469,-332.71808095,7.637e-05,2]
[395168675,1764504628873,-166.45512217,7.637e-05,2]
[395168687,1764504632126,-807.25550356,7.637e-05,2]
[395168692,1764504632200,-1953.32499118,7.637e-05,2]
[395168693,1764504632210,-214.0,7.637e-05,2]
[395168694,1764504632219,-1200.0,7.712e-05,2]
[395168695,1764504632229,-300.0,7.713e-05,2]
[395168696,1764504632238,-300.0,7.713e-05,2]
[395168697,1764504632247,-300.0,7.713e-05,2]
[395168698,1764504632258,-8166.61934389,7.714e-05,2]
[395168699,1764504632268,-1200.0,7.734e-05,2]
[395168700,1764504632277,-523.56034138,7.775e-05,2]
[395168701,1764504632286,-442.423,7.947e-05,2]
[395168702,1764504632295,-236.75473664,8.026e-05,2]
[395168703,1764504632304,-266.78854972,8.119e-05,2]
[395168704,1764504632312,-3835.1179361,8.122e-05,2]
[395168705,1764504632322,-990.0,8.147e-05,2]
[395168706,1764504632331,-631.0,8.147e-05,2]
[395168707,1764504632341,-2154.0,8.147e-05,2]
[395168708,1764504632351,-330.59851449,8.158e-05,2]
[395168709,1764504632360,-150.0,8.186e-05,2]
[395168710,1764504632369,-150.0,8.186e-05,2]
[395168711,1764504632379,-150.0,8.186e-05,2]
[395168712,1764504632389,-150.0,8.186e-05,2]
[395168713,1764504632398,-324.31016434,8.284e-05,2]
[395168714,1764504632407,-500.0,8.319e-05,2]
[395168715,1764504632417,-174.61919141,8.319e-05,2]
[395168716,1764504632426,-478.75725327,8.319e-05,2]
[395168717,1764504632436,-500.0,8.319e-05,2]
[395168718,1764504632446,-500.0,8.319e-05,2]
[395168719,1764504632455,-500.0,8.319e-05,2]
[395168720,1764504632465,-500.0,8.319e-05,2]
[395168721,1764504632475,-231.28369723,8.319e-05,2]
[395168722,1764504632484,-500.0,8.319e-05,2]
[395168723,1764504632493,-500.0,8.319e-05,2]
[395168724,1764504632502,-500.0,8.319e-05,2]
[395168725,1764504632513,-500.0,8.319e-05,2]
[395168726,1764504632522,-500.0,8.319e-05,2]
[395168727,1764504632531,-500.0,8.319e-05,2]
[395168728,1764504632541,-500.0,8.319e-05,2]
[395168729,1764504632550,-500.0,8.319e-05,2]
[395168730,1764504632559,-500.0,8.319e-05,2]
[395168731,1764504632568,-500.0,8.319e-05,2]
[395168732,1764504632576,-500.0,8.319e-05,2]
[395168733,1764504632585,-14844.04183711,8.323e-05,2]
[395168734,1764504632595,-151.0,8.324e-05,2]
[395168735,1764504632604,-3627.39113349,8.324e-05,2]
[395168736,1764504632617,-380.57600175,8.324e-05,2]
[395168737,1764504632628,-2730.9520842,8.324e-05,2]
[395168738,1764504632646,-1599.80440992,8.324e-05,2]
[395168769,1764504638381,-5000.0,8.241e-05,2]
[395168781,1764504638489,-2521.307953,8.241e-05,2]
[395168977,1764504640628,-2e-08,8.241e-05,2]
[395168979,1764504640639,-440.45,8.241e-05,2]
[395168982,1764504640655,-18456.50091811,8.241e-05,2]
[395168984,1764504640664,-50650.35326884,8.324e-05,2]
[395169080,1764504646532,-895.10725028,8.324e-05,2]
[395169081,1764504646543,-10963.02431376,8.324e-05,2]
[395169090,1764504746707,5184.84948327,7.613e-05,2]
[395169126,1764504848926,300.0,7.635e-05,2]
[395169127,1764504857126,300.0,7.635e-05,2]
[395169128,1764504872898,300.0,7.635e-05,2]
[395169131,1764504895228,300.0,7.635e-05,2]
[395169132,1764504901649,500.0,6.896e-05,2]
[395169133,1764504917760,424.51695492,7.635e-05,2]
[395169137,1764504986053,2021.7720742,7.215e-05,2]
[395169138,1764504991672,206.73576502,7.612e-05,2]
[395169142,1764505036058,369.55934673,7.624e-05,2]
[395169144,1764505142528,92.57637586,7.643e-05,2]
[395169145,1764505142550,57.42362414,7.643e-05,2]
[395169191,1764505462025,370.26954763,7.611e-05,2]
[395169192,1764505465631,480.21938949,7.376e-05,2]
[395169193,1764505468763,853.72335909,7.619e-05,2]
[395169194,1764505478686,215.0,7.633e-05,2]
[395169195,1764505487412,215.0,7.633e-05,2]
[395169196,1764505502033,215.0,7.633e-05,2]
[395169197,1764505511401,1115.0,7.633e-05,2]
[395169199,1764505533698,1137.29477159,7.633e-05,2]
[395169200,1764505559170,155.29923296,0.000215,120]
[395169208,1764505631120,-300.0,7.709e-05,2]
[395169209,1764505631141,-215.0,7.71e-05,2]
[395169210,1764505631162,-300.0,7.71e-05,2]
[395169211,1764505631182,-300.0,7.71e-05,2]
[395169212,1764505631204,-1200.0,7.71e-05,2]
[395169213,1764505631224,-998.80143827,7.71e-05,2]
[395169214,1764505631246,-500.0,7.71e-05,2]
[395169215,1764505631268,-301.5461992,7.71e-05,2]
[395169216,1764505646583,3770.68141481,7.61e-05,2]
[395169218,1764505665107,1570.39789325,7.633e-05,2]
[395169219,1764505665128,2998.89687834,7.633e-05,2]
[395169220,1764505673950,206.73576502,7.609e-05,2]
[395169225,1764505714315,574.74929999,7.611e-05,2]
[395169226,1764505757262,-300.0,7.708e-05,2]
[395169227,1764505757282,-1200.0,7.709e-05,2]
[395169228,1764505757304,-500.0,7.709e-05,2]
[395169229,1764505757323,-500.0,7.709e-05,2]
[395169230,1764505757342,-186.03428632,7.709e-05,2]
[395169231,1764505757361,-500.0,7.709e-05,2]
[395169232,1764505757380,-260.3102017,7.709e-05,2]
[395169233,1764505757401,-500.0,7.709e-05,2]
[395169234,1764505757421,-500.0,7.709e-05,2]
[395169235,1764505757441,-358.6765169,7.709e-05,2]
[395169236,1764505757460,-500.0,7.709e-05,2]
[395169237,1764505757481,-460.86205376,7.709e-05,2]
[395169238,1764505757500,-500.0,7.709e-05,2]
[395169239,1764505757524,-500.0,7.709e-05,2]
[395169240,1764505757546,-476.02755416,7.709e-05,2]
[395169241,1764505757571,-500.0,7.709e-05,2]
[395169242,1764505757591,-500.0,7.709e-05,2]
[395169243,1764505757612,-500.0,7.709e-05,2]
[395169244,1764505757632,-500.0,7.709e-05,2]
[395169245,1764505757652,-500.0,7.709e-05,2]
[395169246,1764505757672,-350.0,7.709e-05,2]
[395169247,1764505757693,-500.0,7.709e-05,2]
[395169248,1764505757713,-500.0,7.709e-05,2]
[395169249,1764505757733,-500.0,7.709e-05,2]
[395169250,1764505757754,-500.0,7.709e-05,2]
[395169251,1764505757775,-500.0,7.709e-05,2]
[395169252,1764505757795,-500.0,7.709e-05,2]
[395169253,1764505757816,-500.0,7.709e-05,2]
[395169254,1764505757836,-500.0,7.709e-05,2]
[395169255,1764505757858,-500.0,7.709e-05,2]
[395169256,1764505757879,-500.0,7.709e-05,2]
[395169257,1764505757899,-500.0,7.709e-05,2]
[395169258,1764505757918,-500.0,7.709e-05,2]
[395169259,1764505757937,-500.0,7.709e-05,2]
[395169260,1764505757957,-500.0,7.709e-05,2]
[395169261,1764505757977,-500.0,7.709e-05,2]
[395169262,1764505757997,-500.0,7.709e-05,2]
[395169263,1764505758018,-500.0,7.709e-05,2]
[395169264,1764505758038,-500.0,7.709e-05,2]
[395169265,1764505758058,-500.0,7.709e-05,2]
[395169266,1764505758078,-500.0,7.709e-05,2]
[395169267,1764505758098,-500.0,7.709e-05,2]
[395169268,1764505758119,-500.0,7.709e-05,2]
[395169269,1764505758139,-500.0,7.709e-05,2]
[395169270,1764505758160,-500.0,7.709e-05,2]
[395169271,1764505758180,-500.0,7.709e-05,2]
[395169272,1764505758202,-500.0,7.709e-05,2]
[395169273,1764505758224,-500.0,7.709e-05,2]
[395169274,1764505758245,-500.0,7.709e-05,2]
[395169275,1764505758265,-500.0,7.709e-05,2]
[395169276,1764505758284,-500.0,7.709e-05,2]
[395169277,1764505758305,-500.0,7.709e-05,2]
[395169278,1764505758325,-500.0,7.709e-05,2]
[395169279,1764505758345,-500.0,7.709e-05,2]
[395169280,1764505758366,-500.0,7.709e-05,2]
[395169281,1764505758386,-500.0,7.709e-05,2]
[395169282,1764505758406,-500.0,7.709e-05,2]
[395169283,1764505758428,-500.0,7.709e-05,2]
[395169284,1764505758448,-500.0,7.709e-05,2]
[395169285,1764505758468,-500.0,7.709e-05,2]
[395169286,1764505758489,-500.0,7.709e-05,2]
[395169287,1764505758509,-500.0,7.709e-05,2]
[395169288,1764505758529,-500.0,7.709e-05,2]
[395169289,1764505758550,-500.0,7.709e-05,2]
[395169290,1764505758577,-500.0,7.709e-05,2]
[395169291,1764505758599,-500.0,7.709e-05,2]
[395169292,1764505758620,-500.0,7.709e-05,2]
[395169293,1764505758639,-500.0,7.709e-05,2]
[395169294,1764505758659,-500.0,7.709e-05,2]
[395169295,1764505758679,-500.0,7.709e-05,2]
[395169296,1764505758699,-500.0,7.709e-05,2]
[395169297,1764505758719,-500.0,7.709e-05,2]
[395169298,1764505758737,-500.0,7.709e-05,2]
[395169299,1764505758756,-500.0,7.709e-05,2]
[395169300,1764505758776,-500.0,7.709e-05,2]
[395169301,1764505758795,-500.0,7.709e-05,2]
[395169302,1764505758814,-500.0,7.709e-05,2]
[395169303,1764505758835,-500.0,7.709e-05,2]
[395169304,1764505758854,-500.0,7.709e-05,2]
[395169305,1764505758874,-500.0,7.709e-05,2]
[395169306,1764505758894,-500.0,7.709e-05,2]
[395169307,1764505758914,-500.0,7.709e-05,2]
[395169308,1764505758933,-500.0,7.709e-05,2]
[395169309,1764505758954,-500.0,7.709e-05,2]
[395169310,1764505758973,-500.0,7.709e-05,2]
[395169311,1764505758994,-500.0,7.709e-05,2]
[395169312,1764505759014,-500.0,7.709e-05,2]
[395169313,1764505759033,-500.0,7.709e-05,2]
[395169314,1764505759054,-500.0,7.709e-05,2]
[395169315,1764505759075,-500.0,7.709e-05,2]
[395169316,1764505759095,-500.0,7.709e-05,2]
[395169317,1764505759116,-500.0,7.709e-05,2]
[395169318,1764505759136,-500.0,7.709e-05,2]
[395169319,1764505759157,-500.0,7.709e-05,2]
[395169320,1764505759179,-500.0,7.709e-05,2]
[395169321,1764505759199,-500.0,7.709e-05,2]
[395169322,1764505759220,-500.0,7.709e-05,2]
[395169323,1764505759241,-500.0,7.709e-05,2]
[395169324,1764505759264,-500.0,7.709e-05,2]
[395169325,1764505759284,-500.0,7.709e-05,2]
[395169326,1764505759304,-500.0,7.709e-05,2]
[395169327,1764505759326,-500.0,7.709e-05,2]
[395169328,1764505759346,-500.0,7.709e-05,2]
[395169329,1764505759366,-404.50112159,7.709e-05,2]
[395169330,1764505759387,-500.0,7.709e-05,2]
[395169331,1764505759407,-500.0,7.709e-05,2]
[395169332,1764505759428,-500.0,7.709e-05,2]
[395169333,1764505759449,-500.0,7.709e-05,2]
[395169334,1764505759469,-500.0,7.709e-05,2]
[395169335,1764505759490,-500.0,7.709e-05,2]
[395169336,1764505759510,-500.0,7.709e-05,2]
[395169337,1764505759530,-500.0,7.709e-05,2]
[395169338,1764505759551,-500.0,7.709e-05,2]
[395169339,1764505759576,-500.0,7.709e-05,2]
[395169340,1764505759599,-500.0,7.709e-05,2]
[395169341,1764505759620,-500.0,7.709e-05,2]
[395169342,1764505759641,-500.0,7.709e-05,2]
[395169343,1764505759660,-500.0,7.709e-05,2]
[395169344,1764505759681,-500.0,7.709e-05,2]
[395169345,1764505759701,-276.59038637,7.709e-05,2]
[395169349,1764505762556,-223.40961363,7.709e-05,2]
[395169350,1764505762583,-249.95858535,7.709e-05,2]
[395169351,1764505763772,1333.94274858,7.624e-05,2]
[395169352,1764505766290,595.07732609,7.373e-05,2]
[395169353,1764505768380,1057.91524638,7.373e-05,2]
[395169354,1764505770605,1652.99257246,7.373e-05,2]
[395169355,1764505772955,2380.30930435,7.56e-05,2]
[395169372,1764505804676,-234.70562596,7.708e-05,2]
[395169373,1764505807359,-10.29437404,7.708e-05,2]
[395169374,1764505807383,-189.01345148,7.708e-05,2]
[395169400,1764505833143,-110.98654852,7.708e-05,2]
[395169401,1764505833152,-300.0,7.708e-05,2]
[395169402,1764505833163,-589.01345148,7.708e-05,2]
[395169403,1764505833172,-407.03070456,7.708e-05,2]
[395169404,1764505833206,-203.95584396,7.708e-05,2]
[395169405,1764505833213,-215.0,7.709e-05,2]
[395169406,1764505833222,-176.03407802,7.709e-05,2]
[395169407,1764505833231,-527.579959,7.71e-05,2]
[395169408,1764505833241,-1477.43011902,7.788e-05,2]
[395169409,1764505833253,-1762.43532301,7.788e-05,2]
[395169410,1764505833263,-353.938,7.963e-05,2]
[395169411,1764505833272,-353.97889922,8.013e-05,2]
[395169412,1764505833281,-279.64777777,8.017e-05,2]
[395169446,1764505838585,-243.14339201,7.787e-05,2]
[395169448,1764505838595,-500.0,7.787e-05,2]
[395169449,1764505838604,-164.00306157,7.787e-05,2]
[395169451,1764505838614,-500.0,7.787e-05,2]
[395169453,1764505838623,-500.0,7.787e-05,2]
[395169455,1764505838633,-46.21948638,7.787e-05,2]
[395169458,1764505838655,-453.78051362,7.787e-05,2]
[395169460,1764505838667,-500.0,7.787e-05,2]
[395169462,1764505838676,-500.0,7.787e-05,2]
[395169464,1764505838685,-400.48738535,7.787e-05,2]
[395169466,1764505838697,-500.0,7.787e-05,2]
[395169467,1764505838707,-500.0,7.787e-05,2]
[395169469,1764505838716,-500.0,7.787e-05,2]
[395169471,1764505838725,-500.0,7.787e-05,2]
[395169473,1764505838734,-585.44713574,7.787e-05,2]
[395169475,1764505838743,-500.0,7.787e-05,2]
[395169477,1764505838751,-500.0,7.787e-05,2]
[395169479,1764505838760,-500.0,7.787e-05,2]
[395169480,1764505838769,-500.0,7.787e-05,2]
[395169482,1764505838778,-500.0,7.787e-05,2]
[395169484,1764505838787,-500.0,7.787e-05,2]
[395169486,1764505838796,-500.0,7.787e-05,2]
[395169488,1764505838806,-500.0,7.787e-05,2]
[395169490,1764505838815,-500.0,7.787e-05,2]
[395169492,1764505838824,-500.0,7.787e-05,2]
[395169494,1764505838833,-500.0,7.787e-05,2]
[395169496,1764505838842,-500.0,7.787e-05,2]
[395169498,1764505838851,-500.0,7.787e-05,2]
[395169500,1764505838861,-3952.01320774,8.017e-05,2]
[395169501,1764505838870,-458.04241404,8.113e-05,2]
[395169503,1764505838879,-607.1220959,8.12e-05,2]
[395169505,1764505838889,-990.0,8.213e-05,2]
[395169507,1764505838898,-631.0,8.213e-05,2]
[395169509,1764505838907,-2154.0,8.213e-05,2]
[395169511,1764505838916,-414.0,8.213e-05,2]
[395169513,1764505838926,-414.0,8.213e-05,2]
[395169514,1764505838935,-500.0,8.25e-05,2]
[395169516,1764505838944,-237.35264572,8.25e-05,2]
[395169518,1764505838954,-32023.0972725,8.251e-05,2]
[395169520,1764505838963,-226.78468978,8.307e-05,2]
[395169522,1764505838972,-154.37449941,8.307e-05,2]
[395169524,1764505838981,-500.0,8.319e-05,2]
[395169526,1764505838991,-151.0,8.319e-05,2]
[395169528,1764505839000,-173.3821,8.319e-05,2]
[395169530,1764505839009,-173.3821,8.319e-05,2]
[395169532,1764505839017,-173.3821,8.319e-05,2]
[395169533,1764505839026,-173.3821,8.319e-05,2]
[395169535,1764505839036,-478.75725327,8.319e-05,2]
[395169537,1764505839045,-500.0,8.319e-05,2]
[395169538,1764505839054,-500.0,8.319e-05,2]
[395169540,1764505839063,-500.0,8.319e-05,2]
[395169542,1764505839072,-500.0,8.319e-05,2]
[395169544,1764505839082,-231.28369723,8.319e-05,2]
[395169546,1764505839091,-500.0,8.319e-05,2]
[395169548,1764505839099,-500.0,8.319e-05,2]
[395169550,1764505839109,-500.0,8.319e-05,2]
[395169552,1764505839118,-500.0,8.319e-05,2]
[395169553,1764505839127,-500.0,8.319e-05,2]
[395169555,1764505839136,-500.0,8.319e-05,2]
[395169557,1764505839145,-500.0,8.319e-05,2]
[395169559,1764505839154,-500.0,8.319e-05,2]
[395169561,1764505839163,-500.0,8.319e-05,2]
[395169563,1764505839172,-500.0,8.319e-05,2]
[395169565,1764505839181,-500.0,8.319e-05,2]
[395169566,1764505839189,-500.0,8.319e-05,2]
[395169568,1764505839198,-174.61919141,8.319e-05,2]
[395169570,1764505839208,-314.41295843,8.324e-05,2]
[395169572,1764505839217,-173.3821,8.324e-05,2]
[395169574,1764505839226,-173.3821,8.324e-05,2]
[395169576,1764505839235,-173.3821,8.324e-05,2]
[395169578,1764505839244,-173.3821,8.324e-05,2]
[395169580,1764505839253,-9243.09293946,8.324e-05,2]
[395169582,1764505839265,-8186.02382301,8.324e-05,2]
[395169584,1764505839276,-37706.54900693,8.324e-05,2]
[395169586,1764505839287,-374.98291664,8.324e-05,2]
[395169588,1764505839299,-286.0,8.324e-05,2]
[395169590,1764505839310,-388.79725575,8.324e-05,2]
[395169592,1764505839321,-524.87469203,8.324e-05,2]
[395169721,1764505840628,-5009.01328906,8.324e-05,2]
[395169727,1764505840680,-511.60544266,8.324e-05,2]
[395169729,1764505840691,-635.0,8.324e-05,2]
[395169730,1764505840703,-8348.77198319,8.324e-05,2]
[395169731,1764505840714,-451.59621594,8.324e-05,2]
[395169953,1764505843588,-301.6770173,8.22e-05,2]
[395169954,1764505843597,-3696.73557936,8.324e-05,2]
[395169955,1764505843607,-3097.4470297,8.324e-05,2]
[395169956,1764505843621,-464.996769,8.324e-05,2]
[395169957,1764505843631,-302.0,8.324e-05,2]
[395169958,1764505843750,-1394.35171078,8.324e-05,2]
[395169959,1764505843761,-378.38774052,8.324e-05,2]
[395169999,1764505848974,-112217.87130906,8.324e-05,2]
[395170000,1764505883449,10000.01,7.611e-05,2]
[395170001,1764505883477,10000.01,7.611e-05,2]
[395170002,1764505883504,10000.01,7.611e-05,2]
[395170003,1764505883530,10000.01,7.611e-05,2]
[395170004,1764505892827,157.010485,0.0001111,3]
[395170005,1764505911932,-154.07358042,7.611e-05,2]
[395170006,1764505917008,-218.60633673,7.611e-05,2]
[395170007,1764505918445,-271.99651028,7.611e-05,2]
[395170008,1764505920294,-435.27001516,7.611e-05,2]
[395170009,1764505922364,-166.87172301,7.611e-05,2]
[395170010,1764505924399,-291.20643508,7.61e-05,2]
[395170011,1764505935190,-8.79356492,7.61e-05,2]
[395170012,1764505935593,-254.87355753,7.611e-05,2]
[395170013,1764505937546,-187.04828438,7.611e-05,2]
[395170014,1764505939650,-300.0,7.611e-05,2]
[395170015,1764505941130,-175.67066949,7.611e-05,2]
[395170016,1764505943015,-201.8085129,7.611e-05,2]
[395170017,1764505946214,-500.0,7.611e-05,2]
[395170018,1764505948209,-420.61565121,7.611e-05,2]
[395170019,1764505949661,-2245.13981014,7.611e-05,2]
[395170020,1764505951121,-300.0,7.611e-05,2]
[395170021,1764505953518,-1200.00000002,7.611e-05,2]
[395170022,1764505955139,318.89424378,7.535e-05,2]
[395170023,1764505955183,500.0,7.61e-05,2]
[395170024,1764505955216,500.0,7.61e-05,2]
[395170025,1764505955245,271.99651028,7.61e-05,2]
[395170026,1764505955274,199.96710672,7.61e-05,2]
[395170027,1764505955310,500.0,7.61e-05,2]
[395170028,1764505955339,500.0,7.61e-05,2]
[395170029,1764505955370,388.49109934,7.61e-05,2]
[395170030,1764505955399,500.0,7.61e-05,2]
[395170031,1764505955439,221.10881598,7.61e-05,2]
[395170032,1764505955468,500.0,7.61e-05,2]
[395170033,1764505955504,500.0,7.61e-05,2]
[395170034,1764505955551,500.0,7.61e-05,2]
[395170035,1764505955580,500.0,7.61e-05,2]
[395170036,1764505955620,500.0,7.61e-05,2]
[395170037,1764505955650,500.0,7.61e-05,2]
[395170038,1764505955691,500.0,7.61e-05,2]
[395170039,1764505955731,500.0,7.61e-05,2]
[395170040,1764505955759,500.0,7.61e-05,2]
[395170041,1764505955809,637.91674975,7.61e-05,2]
[395170042,1764505956054,500.0,7.61e-05,2]
[395170043,1764505956115,461.63547415,7.61e-05,2]
[395170044,1764505956138,38.36452585,7.61e-05,2]
[395170045,1764505956168,500.0,7.61e-05,2]
[395170046,1764505956232,500.0,7.61e-05,2]
[395170047,1764505956343,157.010485,0.0001111,3]
[395170048,1764505956440,-300.0,7.611e-05,2]
[395170049,1764505957732,500.0,7.61e-05,2]
[395170050,1764505960633,-223.25070388,7.611e-05,2]
[395170051,1764505963575,757.36755899,7.535e-05,2]
[395170052,1764505971389,500.0,7.61e-05,2]
[395170053,1764505971450,500.0,7.61e-05,2]
[395170054,1764505971495,200.0,7.61e-05,2]
[395170055,1764505975229,1200.0,7.61e-05,2]
[395170056,1764505977091,500.0,7.61e-05,2]
[395170057,1764505982796,500.0,7.61e-05,2]
[395170058,1764505982844,300.0,7.61e-05,2]
[395170059,1764505983192,500.0,7.61e-05,2]
[395170060,1764505983496,500.0,7.61e-05,2]
[395170061,1764505984596,500.0,7.61e-05,2]
[395170062,1764505984631,500.0,7.61e-05,2]
[395170063,1764505984669,500.0,7.61e-05,2]
[395170064,1764505984713,265.66441383,7.61e-05,2]
[395170065,1764505984754,500.0,7.61e-05,2]
[395170066,1764505984790,500.0,7.61e-05,2]
[395170067,1764505984833,238.61350133,7.61e-05,2]
[395170068,1764505984858,261.38649867,7.61e-05,2]
[395170069,1764505984908,500.0,7.61e-05,2]
[395170070,1764505984945,500.0,7.61e-05,2]
[395170071,1764505984991,500.0,7.61e-05,2]
[395170072,1764505985027,500.0,7.61e-05,2]
[395170073,1764505985067,500.0,7.61e-05,2]
[395170074,1764505985114,500.0,7.61e-05,2]
[395170075,1764505985152,500.0,7.61e-05,2]
[395170076,1764505985193,500.0,7.61e-05,2]
[395170077,1764505985256,500.0,7.61e-05,2]
[395170078,1764505985303,500.0,7.61e-05,2]
[395170079,1764505985347,500.0,7.61e-05,2]
[395170080,1764505987855,500.0,7.61e-05,2]
[395170081,1764505987902,500.0,7.61e-05,2]
[395170082,1764505987949,300.0,7.61e-05,2]
[395170083,1764505990241,-2024.61871535,7.611e-05,2]
[395170084,1764505990368,-10000.01,7.611e-05,2]
[395170085,1764505990527,-10000.01,7.611e-05,2]
[395170086,1764505990685,-10000.01,7.611e-05,2]
[395170087,1764505990839,-10000.01,7.611e-05,2]
[395170088,1764505990988,-10000.01,7.611e-05,2]
[395170089,1764505997184,-500.0,7.61e-05,2]
[395170090,1764505997228,-9000.01,7.611e-05,2]
[395170091,1764505997529,-10000.01,7.611e-05,2]
[395170092,1764506003984,-500.0,7.61e-05,2]
[395170093,1764506004018,-365.66441383,7.61e-05,2]
[395170094,1764506004100,-8268.68117234,7.611e-05,2]
[395170095,1764506004252,-10000.01,7.611e-05,2]
[395170096,1764506004398,-10000.01,7.611e-05,2]
[395170097,1764506004593,-10000.01,7.611e-05,2]
[395170098,1764506004765,-10000.01,7.611e-05,2]
[395170099,1764506004963,-10000.01,7.611e-05,2]
[395170100,1764506005143,-10000.01,7.611e-05,2]
[395170101,1764506005503,-10000.01,7.611e-05,2]
[395170102,1764506046960,-232.66817436,7.435e-05,2]
[395170103,1764506048521,-267.33182564,7.435e-05,2]
[395170104,1764506048544,-31.077324,7.51e-05,2]
[395170105,1764506060334,-767.53603278,7.435e-05,2]
[395170106,1764506061998,-246.61421166,7.51e-05,2]
[395170107,1764506073503,520.92182112,7.435e-05,2]
[395170108,1764506081379,520.92182112,7.435e-05,2]
[395170109,1764506096907,520.92182112,7.435e-05,2]
[395170110,1764506104866,304.15599468,7.435e-05,2]
[395170111,1764506186367,479.28238602,7.41e-05,2]
[395170125,1764506271933,-231.9296042,7.51e-05,2]
[395170126,1764506273894,-206.78271788,7.51e-05,2]
[395170127,1764506277720,2970.0101017,6.701e-05,2]
[395170128,1764506332583,-82.20949904,7.51e-05,2]
[395170129,1764506332604,-527.26786329,7.533e-05,2]
[395170130,1764506364341,609.47736233,7.433e-05,2]
[395170131,1764506397968,4036.87,0.0002,30]
[395170132,1764506408077,-179.17767833,7.533e-05,2]
[395170133,1764506410002,-34.82232167,7.533e-05,2]
[395170134,1764506410024,-41.86901066,7.533e-05,2]
[395170135,1764506410044,-132.89507985,7.557e-05,2]
[395170136,1764506421021,179.17767833,7.481e-05,2]
[395170137,1764506428910,187.351842,7.481e-05,2]
[395170138,1764506451678,187.351842,7.481e-05,2]
[395170140,1764506474571,187.351842,7.481e-05,2]
[395170143,1764506546893,187.351842,7.179e-05,2]
[395170144,1764506549268,205.92616849,7.419e-05,2]
[395170145,1764506555160,157.010485,0.0001111,3]
[395170146,1764506570512,323.34973202,0.0001111,3]
[395170147,1764506730566,-300.0,7.606e-05,2]
[395170148,1764506730594,-300.0,7.606e-05,2]
[395170149,1764506730623,-300.0,7.606e-05,2]
[395170150,1764506730651,-300.0,7.606e-05,2]
[395170151,1764506730678,-1200.0,7.606e-05,2]
[395170152,1764506731038,-254.16377094,7.607e-05,2]
[395170153,1764506734219,289.05542828,7.531e-05,2]
[395170154,1764506747350,-945.83622906,7.607e-05,2]
[395170155,1764506750133,-500.0,7.607e-05,2]
[395170156,1764506750155,-500.0,7.607e-05,2]
[395170157,1764506750184,-384.28179466,7.607e-05,2]
[395170158,1764506762504,300.0,7.606e-05,2]
[395170159,1764506792124,500.0,7.606e-05,2]
[395170160,1764506792155,500.0,7.606e-05,2]
[395170161,1764506792186,500.0,7.606e-05,2]
[395170162,1764506792219,500.0,7.606e-05,2]
[395170163,1764506792251,299.20748088,7.606e-05,2]
[395170164,1764506792299,260.3102017,7.606e-05,2]
[395170165,1764506792331,500.0,7.606e-05,2]
[395170166,1764506792359,405.35530604,7.606e-05,2]
[395170167,1764506792395,501.75249166,7.606e-05,2]
[395170168,1764506792429,500.0,7.606e-05,2]
[395170169,1764506792469,500.0,7.606e-05,2]
[395170170,1764506792502,264.77584838,7.606e-05,2]
[395170171,1764506792539,619.7335644,7.606e-05,2]
[395170172,1764506792581,500.0,7.606e-05,2]
[395170173,1764506792610,500.0,7.606e-05,2]